bitfinex/quotes_ETHUSD_20260306
["timestamp","ask_amount","ask_price","bid_price","bid_amount"]
[1772815912788,2.18475933,1976.8,1976.4,0.0011]
[1772815913675,0.45952426,1976.7,1976.4,0.0011]
[1772815913892,0.45952426,1976.7,1976.1,0.0011]
[1772815914195,0.45952426,1976.7,1976.0,0.48085536]
[1772815914196,0.45952426,1976.7,1975.7,1.74621137]
[1772815914779,0.45952426,1976.7,1975.7,2.65721137]
[1772815915469,0.45952426,1976.7,1975.8,0.49112906]
[1772815917178,1.73042873,1976.5,1975.8,1.75639821]
[1772815917684,1.72535304,1976.6,1975.9,0.49112906]
[1772815919277,1.72532938,1976.6,1976.1,0.49112906]
[1772815919499,1.72532911,1976.6,1976.1,0.49112906]
[1772815920607,0.4655666,1976.5,1975.9,0.912]
[1772815921009,1.72532911,1976.6,1975.9,0.912]
[1772815921214,1.72532911,1976.6,1976.0,0.49112906]
[1772815922488,1.72532911,1976.6,1975.8,0.46902544]
[1772815922684,1.72532911,1976.6,1975.6,2.26942792]
[1772815922685,0.4783987,1976.5,1975.6,2.26942792]
[1772815922880,0.4783987,1976.5,1975.6,0.53500934]
[1772815923101,0.4783987,1976.5,1975.5,0.0011]
[1772815923308,0.4783987,1976.3,1975.5,0.0011]
[1772815923602,0.4772987,1976.2,1975.9,0.0011]
[1772815924627,1.26511816,1976.1,1975.9,0.0011]
[1772815924778,1.74222482,1976.4,1975.9,0.0011]
[1772815925180,0.4772987,1976.3,1975.9,0.0011]
[1772815925409,0.4772987,1976.3,1975.5,0.0011]
[1772815925607,0.46052425,1976.0,1975.5,0.0011]
[1772815925988,1.26490849,1976.5,1975.6,0.46902544]
[1772815926910,5.05931297,1976.6,1975.8,0.46902544]
[1772815927122,1.26479813,1976.6,1975.8,0.46902544]
[1772815927296,1.26479813,1976.6,1975.9,0.46902544]
[1772815927710,1.74209683,1976.6,1975.9,0.46902544]
[1772815928801,1.74222482,1976.4,1975.7,1.73437887]
[1772815929000,1.26492612,1976.4,1975.8,0.46902544]
[1772815930448,5.05871625,1976.8,1975.8,0.46902544]
[1772815930942,5.05871625,1976.8,1976.0,0.46902544]
[1772815932109,1.26467017,1976.8,1976.2,0.46902544]
[1772815932531,1.74196887,1976.8,1976.0,0.46902544]
[1772815932735,0.4772987,1976.7,1976.0,0.46902544]
[1772815933043,1.2656506,1976.9,1976.2,0.46902544]
[1772815934422,1.26435037,1977.3,1976.3,0.46902544]
[1772815934827,1.26435037,1977.3,1976.5,0.46902544]
[1772815935025,1.26435037,1977.3,1976.6,0.46902544]
[1772815935430,0.001,1976.7,1976.6,0.46902544]
[1772815935629,1.26435037,1977.3,1976.6,0.46902544]
[1772815937150,5.53424881,1977.5,1976.7,1.26473415]
[1772815937357,0.4772987,1977.4,1976.6,0.46902544]
[1772815937559,0.4772987,1977.4,1976.7,0.46902544]
[1772815938379,1.2642225,1977.6,1976.7,0.46902544]
[1772815938526,1.2642225,1977.6,1976.8,0.912]
[1772815938825,1.2642225,1977.6,1976.9,0.46902544]
[1772815939530,1.26409465,1977.7,1977.1,0.46902544]
[1772815941458,5.05626144,1977.8,1977.1,0.46902544]
[1772815941655,5.05626144,1977.8,1977.1,1.73350185]
[1772815942657,1.26403074,1977.8,1977.2,0.46902544]
[1772815943954,1.26403074,1977.8,1977.2,1.73340338]
[1772815944153,1.26403074,1977.8,1977.2,0.46902544]
[1772815944353,1.26403074,1977.8,1977.2,1.73343433]
[1772815947756,0.001,1977.7,1977.2,1.73343433]
[1772815948362,0.001,1977.7,1977.3,0.46902544]
[1772815950463,0.001,1977.7,1977.0,0.46902544]
[1772815950657,0.48744395,1977.7,1977.1,0.46902544]
[1772815951166,0.001,1977.7,1977.1,0.46902544]
[1772815952037,0.48613621,1977.7,1976.9,2.67564699]
[1772815952243,0.48513621,1977.5,1976.9,0.49904079]
[1772815954070,0.48513621,1977.5,1976.8,0.0011]
[1772815954364,1.2651073,1977.7,1977.0,0.49904079]
[1772815954768,1.26510415,1977.7,1977.0,0.49904079]
[1772815955149,0.001,1977.7,1977.0,0.49904079]
[1772815955749,1.26509513,1977.7,1977.0,0.49904079]
[1772815955953,0.001,1977.7,1977.0,0.49904079]
[1772815956151,0.48513621,1978.3,1977.2,0.49904079]
[1772815957670,0.48513621,1978.3,1977.4,0.49904079]
[1772815958273,1.26377514,1978.2,1977.4,0.49904079]
[1772815958572,0.48513621,1978.1,1977.2,1.76340749]
[1772815958766,0.48513621,1978.1,1977.3,0.49904079]
[1772815958966,0.48513621,1977.7,1976.8,0.50014079]
[1772815959170,0.48513621,1977.7,1976.8,1.76480071]
[1772815959372,0.48513621,1977.7,1976.9,0.49904079]
[1772815959953,0.48513621,1977.7,1976.8,0.0011]
[1772815960378,0.48513621,1977.5,1976.8,0.0011]
[1772815961579,0.48513621,1977.3,1976.5,0.0011]
[1772815962460,0.48513621,1977.1,1976.5,0.0011]
[1772815964579,0.48513621,1976.9,1976.5,0.0011]
[1772815964759,1.26454223,1977.0,1976.5,0.0011]
[1772815965171,1.26454223,1977.0,1976.5,0.50014079]
[1772815966386,5.05816894,1977.1,1976.5,0.50014079]
[1772815966687,0.48513621,1977.0,1976.5,0.0011]
[1772815968882,1.2646062,1976.9,1976.5,0.0011]
[1772815970986,5.05816894,1977.1,1976.5,0.50014079]
[1772815972462,5.05816894,1977.1,1976.6,0.50014079]
[1772815972690,0.001,1976.9,1976.6,0.50014079]
[1772815974364,0.001,1976.9,1976.7,0.49904079]
[1772815974665,0.001,1976.9,1976.6,0.0011]
[1772815975075,0.001,1976.9,1976.6,0.47278018]
[1772815975294,5.05689001,1977.7,1976.7,0.47168018]
[1772815975459,0.48508002,1977.6,1976.7,0.47168018]
[1772815975664,0.48508002,1977.6,1976.6,0.47278018]
[1772815976314,2.929016,1977.6,1976.6,0.47278018]
[1772815976481,0.48508002,1977.5,1976.6,0.47278018]
[1772815976989,0.48403922,1976.6,1976.0,0.0011]
[1772815979270,0.48403922,1976.4,1976.0,0.0011]
[1772815980576,0.48403922,1976.4,1975.7,0.0011]
[1772815980775,3.70879811,1976.5,1975.2,0.0011]
[1772815980776,0.48403922,1976.1,1975.2,0.0011]
[1772815980981,0.48403922,1975.8,1975.2,0.0011]
[1772815981181,1.74941351,1975.7,1975.2,0.0011]
[1772815981380,1.26537429,1975.7,1975.2,0.0011]
[1772815982394,1.13,1976.0,1975.3,0.48598845]
[1772815982594,2.39520176,1976.0,1975.3,0.48598845]
[1772815982796,1.26515221,1976.1,1975.3,0.48598845]
[1772815983185,1.26497057,1976.4,1975.5,0.48488845]
[1772815983702,1.74607316,1976.4,1975.5,0.48488845]
[1772815985501,1.74607316,1976.4,1975.7,0.48488845]
[1772815985797,1.26497057,1976.4,1975.7,0.48488845]
[1772815987201,1.26479813,1976.6,1975.7,0.48488845]
[1772815987697,5.05897001,1976.7,1975.9,0.48488845]
[1772815987997,0.48110259,1976.6,1975.9,0.48488845]
[1772815990600,5.05897001,1976.7,1975.9,0.48488845]
[1772815990788,5.05897001,1976.7,1975.9,1.75012378]
[1772815991184,5.05897001,1976.7,1975.9,1.75013286]
[1772815991385,5.05897001,1976.7,1976.0,0.48488845]
[1772815993893,5.05897001,1976.7,1976.0,1.75007042]
[1772815994093,5.05897001,1976.7,1976.0,0.48488845]
[1772815994878,5.5400726,1976.7,1976.0,0.48488845]
[1772815996104,5.5400726,1976.7,1976.0,1.75006974]
[1772815996309,5.5400726,1976.7,1976.0,0.48488845]
[1772815997399,5.5400726,1976.7,1976.0,1.75006715]
[1772815998189,0.001,1976.6,1976.0,1.75006709]
[1772815998506,0.001,1976.6,1976.0,0.48488845]
[1772815998887,0.001,1976.6,1976.0,1.75006329]
[1772815999288,0.001,1976.6,1976.0,0.48488845]
[1772815999992,0.48210259,1976.6,1976.0,0.48488845]
[1772816000392,1.74596472,1976.5,1975.8,0.48488845]
[1772816000791,0.48110259,1976.4,1975.8,0.48488845]
[1772816001294,0.48110259,1976.4,1975.6,0.48598845]
[1772816001498,0.48110259,1976.2,1975.6,0.48598845]
[1772816002015,0.48110259,1976.2,1975.5,0.0011]
[1772816002214,2.44416432,1976.1,1975.5,0.0011]
[1772816002389,0.48110259,1975.8,1975.3,0.0011]
[1772816002586,0.48110259,1975.6,1975.3,0.0011]
[1772816002790,1.136,1975.7,1975.3,0.0011]
[1772816003812,1.61710259,1975.7,1975.3,0.0011]
[1772816004215,0.48110259,1975.6,1975.3,0.0011]
[1772816004415,0.48110259,1975.4,1975.3,0.0011]
[1772816004815,0.48110259,1975.4,1975.1,0.0011]
[1772816005118,0.48110259,1975.4,1974.9,0.0011]
[1772816006522,0.48110259,1975.2,1974.6,0.0011]
[1772816006694,0.48110259,1975.0,1974.6,0.0011]
[1772816007021,0.48110259,1975.0,1974.4,0.0011]
[1772816007520,1.138,1975.1,1974.4,0.48598845]
[1772816007696,1.138,1975.1,1974.5,0.48488845]
[1772816008220,0.48110259,1974.8,1974.0,1e-08]
[1772816008518,0.48110259,1974.6,1973.8,1.751467]
[1772816008822,0.48110259,1974.5,1973.5,0.48488845]
[1772816009126,0.48110259,1974.5,1973.4,1.26682725]
[1772816009504,0.48110259,1974.5,1973.3,1.7517992]
[1772816009692,0.48110259,1974.2,1973.0,1.75305288]
[1772816009892,2.44416432,1974.3,1973.1,0.48488845]
[1772816009893,0.48110259,1974.0,1973.1,0.48488845]
[1772816010518,0.48110259,1973.8,1973.0,0.0011]
[1772816010817,0.48110259,1973.8,1973.0,1.26820397]
[1772816010997,0.48110259,1973.8,1973.1,0.48488845]
[1772816011198,0.48110259,1973.8,1973.0,1.26820397]
[1772816011410,0.48110259,1973.8,1973.0,1.26820131]
[1772816011796,0.48110259,1973.8,1973.0,0.0011]
[1772816012021,0.48110259,1973.8,1973.0,1.26820295]
[1772816012412,1.26652819,1973.9,1973.1,0.47023336]
[1772816012800,0.45090978,1973.9,1973.2,1.26697749]
[1772816013224,2.85636393,1974.1,1973.3,0.47023336]
[1772816013719,2.40545415,1974.1,1973.3,0.47023336]
[1772816013927,0.45090978,1974.3,1973.3,0.47023336]
[1772816014224,5.0648361,1974.4,1973.3,0.47023336]
[1772816014922,5.51574588,1974.4,1973.5,0.47023336]
[1772816015497,1.71711723,1974.4,1973.5,0.47023336]
[1772816015808,2.40615266,1974.5,1973.5,0.47023336]
[1772816016013,5.06395013,1974.8,1973.5,0.47023336]
[1772816016333,0.45090978,1974.4,1973.0,0.0011]
[1772816016502,0.45090978,1973.5,1972.3,0.47023336]
[1772816016823,1.58990978,1973.4,1972.5,0.47023336]
[1772816017030,1.26691329,1973.3,1972.5,1.73766006]
[1772816017229,2.40589647,1973.4,1972.6,0.47023336]
[1772816017434,1.139,1973.4,1972.6,0.47023336]
[1772816017902,2.40585263,1973.4,1972.6,0.47023336]
[1772816018425,1.2667556,1973.6,1972.6,0.47023336]
[1772816018796,1.71760953,1973.7,1972.6,0.47023336]
[1772816019000,5.0658639,1974.0,1972.8,0.47023336]
[1772816019001,1.71737381,1974.0,1972.8,0.47023336]
[1772816019222,1.71737381,1974.0,1972.8,0.898]
[1772816019424,0.45090978,1974.3,1972.9,0.47023336]
[1772816019614,1.71718136,1974.3,1972.9,0.47023336]
[1772816020610,1.71718136,1974.3,1973.1,0.47023336]
[1772816020903,2.39521876,1974.4,1973.1,0.47023336]
[1772816021108,1.26621876,1974.4,1973.3,0.47023336]
[1772816021429,1.2660792,1974.6,1973.3,0.47023336]
[1772816021624,1.7169574,1974.7,1973.5,0.47023336]
[1772816022303,1.26604762,1974.7,1973.7,0.47023336]
[1772816022641,5.06360851,1974.9,1973.7,0.47023336]
[1772816022845,1.26587082,1975.0,1973.7,0.47023336]
[1772816023123,0.99043955,1975.3,1974.2,0.47023336]
[1772816023124,1.26569461,1975.2,1974.2,0.47023336]
[1772816023626,0.45090978,1975.1,1974.0,1.73669739]
[1772816024007,0.45090978,1975.0,1973.7,1.73688989]
[1772816024622,0.45090978,1975.0,1973.8,0.47023336]
[1772816025924,1.71679666,1974.9,1973.8,0.47023336]
[1772816026224,0.45090978,1974.8,1973.8,1.73679054]
[1772816026613,0.45090978,1974.8,1973.9,0.47023336]
[1772816026815,1.26588688,1974.9,1973.9,0.47023336]
[1772816027735,1.71679666,1974.9,1973.9,0.47023336]
[1772816027911,1.71679666,1974.9,1974.0,1.26646403]
[1772816028112,1.71664651,1975.2,1974.1,0.47023336]
[1772816028860,0.45090978,1975.1,1974.1,0.47023336]
[1772816030036,1.26582278,1975.0,1974.3,0.47023336]
[1772816030433,5.06290382,1975.2,1974.3,0.47023336]
[1772816031025,5.5138136,1975.2,1974.3,0.47023336]
[1772816032207,0.45090978,1975.1,1974.0,0.47023336]
[1772816034323,1.71673256,1975.0,1974.2,0.47023336]
[1772816034525,1.26582278,1975.0,1974.2,0.47023336]
[1772816035330,0.47668891,1974.9,1974.2,0.47023336]
[1772816035530,0.47668891,1974.9,1974.1,1.26749987]
[1772816035938,0.47668891,1974.9,1974.1,0.0011]
[1772816036222,1.2659397,1974.9,1974.1,0.45829277]
[1772816037648,1.74356208,1975.0,1974.1,0.45829277]
[1772816037951,1.26683019,1975.0,1974.1,0.45829277]
[1772816038668,0.001,1975.0,1974.3,0.45719277]
[1772816039446,1.26569856,1975.2,1974.4,0.45719277]
[1772816040040,1.80520562,1975.3,1974.4,0.45719277]
[1772816040259,1.74212981,1975.6,1974.6,0.45719277]
[1772816040458,0.47668891,1975.5,1974.6,0.45719277]
[1772816040838,1.26556646,1975.4,1974.7,1.26601509]
[1772816041029,1.74222292,1975.5,1974.7,1.72320786]
[1772816041663,0.47668891,1974.9,1974.1,1.18195355]
[1772816041861,0.49026733,1974.7,1974.1,0.0011]
[1772816042959,1.26603824,1974.7,1974.1,0.0011]
[1772816043529,1.26593579,1974.9,1974.1,0.49743033]
[1772816043729,0.49026733,1974.8,1974.1,0.0011]
[1772816044355,1.26593579,1974.9,1974.1,0.0011]
[1772816044666,1.75620312,1974.9,1974.1,0.0011]
[1772816044966,0.49026733,1975.3,1974.2,0.49633033]
[1772816047131,0.49026733,1975.1,1974.3,1.26627158]
[1772816047980,0.49026733,1975.1,1974.2,1.26740253]
[1772816048335,0.49026733,1975.1,1974.2,0.0011]
[1772816048539,0.49026733,1975.1,1974.2,1.26741612]
[1772816048961,0.49026733,1975.1,1974.2,0.0011]
[1772816049263,0.49026733,1974.9,1974.2,0.0011]
[1772816049434,0.49026733,1974.7,1974.0,0.0011]
[1772816051249,1.75634653,1974.6,1974.0,0.0011]
[1772816051446,1.2660669,1974.7,1974.0,0.0011]
[1772816051648,1.26595098,1974.8,1974.0,0.0011]
[1772816051856,1.2659231,1974.9,1974.0,0.49743033]
[1772816052054,1.26575869,1975.1,1974.0,0.49743033]
[1772816053350,1.26674746,1975.2,1974.2,0.49633033]
[1772816053552,1.26670928,1975.2,1974.2,0.49633033]
[1772816054049,0.49026733,1975.1,1974.1,1.26639987]
[1772816054753,0.49026733,1975.1,1974.0,1.26752317]
[1772816055353,1.26582278,1975.0,1974.1,0.49633033]
[1772816055753,1.26581086,1975.1,1974.1,0.49633033]
[1772816055970,1.26581086,1975.1,1974.3,0.49633033]
[1772816057768,5.06403478,1975.2,1974.3,0.49633033]
[1772816058073,5.55430211,1975.2,1974.4,1.26620745]
[1772816059075,5.06403478,1975.2,1974.4,1.76253778]
[1772816059478,0.49026733,1975.1,1974.1,0.0011]
[1772816059774,0.49026733,1975.1,1974.1,1.26749759]
[1772816059962,0.49026733,1974.9,1974.1,0.0011]
[1772816060951,3.71388933,1975.0,1974.0,0.0011]
[1772816060952,0.49026733,1974.6,1974.0,0.0011]
[1772816061253,0.49026733,1974.5,1974.0,0.0011]
[1772816062073,1.75647478,1974.4,1974.0,0.0011]
[1772816062280,1.26620745,1974.4,1974.0,0.0011]
[1772816062479,0.49026733,1974.3,1974.0,0.0011]
[1772816063796,0.49026733,1974.3,1973.4,0.0011]
[1772816064294,0.49026733,1974.1,1973.4,0.0011]
[1772816064460,0.49026733,1974.0,1973.4,0.0011]
[1772816065904,0.49026733,1973.9,1973.4,0.0011]
[1772816066056,1.75698804,1973.6,1973.1,0.0011]
[1772816067783,0.49026733,1973.5,1973.1,0.0011]
[1772816068284,0.49026733,1973.3,1971.9,0.49633033]
[1772816068581,0.49026733,1973.1,1971.9,1.76411749]
[1772816068756,0.49026733,1973.1,1972.0,0.49633033]
[1772816070072,0.49026733,1973.0,1971.9,1.26778716]
[1772816070296,0.49026733,1972.8,1971.5,0.49633033]
[1772816070483,0.49026733,1972.8,1971.7,0.49633033]
[1772816070892,0.49026733,1972.8,1971.4,0.49633033]
[1772816071575,4.8582367,1972.9,1971.2,1.26826298]
[1772816071576,0.45477128,1972.5,1971.2,1.26826298]
[1772816072281,0.45477128,1972.3,1971.2,1.72051271]
[1772816074004,1.144,1972.3,1971.2,1.26826298]
[1772816074206,0.45477128,1972.2,1971.2,1.26824245]
[1772816074505,1.72244143,1972.2,1971.2,1.72049218]
[1772816074693,1.144,1972.3,1971.3,0.45224973]
[1772816075605,1.72226155,1972.5,1971.3,0.45224973]
[1772816076281,0.45477128,1972.4,1971.3,0.45224973]
[1772816076505,1.72232692,1972.3,1971.4,1.26813432]
[1772816077482,0.45477128,1972.2,1971.4,1.26813432]
[1772816077710,1.26755564,1972.3,1971.0,0.3799755]
[1772816077711,0.45477128,1971.9,1971.0,0.3799755]
[1772816077883,0.45477128,1971.8,1970.8,1.26848927]
[1772816078584,0.45477128,1971.9,1970.9,0.45224973]
[1772816078797,0.45477128,1971.9,1970.8,1.26848927]
[1772816080411,0.45477128,1971.5,1970.6,4.1962332]
[1772816080707,0.45477128,1971.5,1970.6,1.26862324]
[1772816081512,0.45477128,1971.4,1970.6,1.26862324]
[1772816083193,2.41212476,1971.5,1970.4,0.45224973]
[1772816083611,2.41212476,1971.5,1970.7,0.0011]
[1772816083913,1.72289604,1971.5,1970.7,0.0011]
[1772816085482,0.45477128,1971.4,1970.7,0.0011]
[1772816085894,1.144,1971.3,1970.7,0.0011]
[1772816086108,1.144,1971.3,1970.1,0.45224973]
[1772816086109,0.45477128,1970.9,1969.8,1.26912104]
[1772816086287,0.45477128,1970.8,1969.8,1.26912104]
[1772816086488,0.45477128,1970.6,1969.8,1.26912104]
[1772816086697,0.45477128,1970.6,1969.7,1.26920096]
[1772816087100,0.45477128,1970.6,1969.5,1.26932057]
[1772816087313,0.45477128,1970.3,1969.3,1.26942566]
[1772816088382,0.45477128,1970.3,1969.0,1.26968004]
[1772816088999,0.45477128,1970.2,1969.0,1.26968004]
[1772816089199,0.45477128,1970.2,1968.7,1.26980902]
[1772816089405,0.45477128,1970.0,1968.7,1.26980902]
[1772816089810,0.45477128,1970.0,1968.9,0.45224973]
[1772816090606,1.26895783,1970.2,1968.9,0.45224973]
[1772816090912,0.45477128,1970.1,1968.9,0.45224973]
[1772816091507,0.45477128,1969.9,1969.0,1.26968004]
[1772816092185,0.45477128,1969.9,1968.7,1.26987352]
[1772816092398,0.45477128,1969.9,1968.8,0.45224973]
[1772816093408,0.45477128,1969.7,1968.9,1.26974452]
[1772816094093,0.45477128,1969.7,1968.6,1.26987352]
[1772816094317,2.90283783,1969.6,1968.6,1.26987352]
[1772816094494,0.45477128,1969.5,1968.4,0.98083799]
[1772816094694,0.45477128,1969.2,1968.5,1.27000254]
[1772816095216,0.45477128,1969.2,1968.4,0.98083799]
[1772816095511,0.4727913,1969.0,1968.4,0.98083799]
[1772816096094,0.4727913,1968.9,1968.4,0.78083799]
[1772816097017,0.4727913,1968.9,1968.8,0.0011]
[1772816097312,0.4727913,1968.9,1968.6,0.0011]
[1772816097526,1.26980902,1968.8,1968.6,0.0011]
[1772816097896,1.26980902,1968.8,1968.4,0.78083799]
[1772816098091,0.4727913,1968.7,1968.0,1.27027601]
[1772816098712,1.74248425,1969.0,1968.1,0.45874457]
[1772816099012,0.4727913,1968.9,1967.8,1.27045431]
[1772816099218,0.4727913,1968.9,1967.8,1.72919888]
[1772816099813,1.74258286,1968.9,1967.9,0.45874457]
[1772816100029,1.26979156,1968.9,1967.9,0.45874457]
[1772816100239,1.74250515,1969.0,1967.9,0.45874457]
[1772816100395,1.74249145,1969.0,1967.9,0.45874457]
[1772816101027,7.8670076,1969.3,1967.9,0.45874457]
[1772816101028,0.4727913,1969.2,1968.0,0.45874457]
[1772816101697,1.74235238,1969.2,1968.3,1.75274353]
[1772816101901,1.26957414,1969.2,1968.4,0.48261195]
[1772816102298,0.34097262,1969.3,1968.4,0.48261195]
[1772816102507,0.49591315,1969.8,1968.7,0.48261195]
[1772816102911,1.76504455,1969.9,1968.7,0.48261195]
[1772816103120,0.49591315,1969.8,1968.7,0.48261195]
[1772816103630,0.49591315,1969.8,1968.8,0.48261195]
[1772816103837,0.49591315,1969.7,1968.9,1.26974452]
[1772816104033,0.49591315,1969.7,1968.6,5.07972034]
[1772816104541,0.49591315,1969.7,1968.6,5.56233229]
[1772816105227,0.49591315,1969.7,1968.6,1.75254997]
[1772816105414,0.49591315,1969.7,1968.1,2.72096506]
[1772816105415,0.49591315,1969.6,1968.4,5.08011398]
[1772816106226,0.49591315,1969.4,1968.4,5.08011398]
[1772816106527,0.49591315,1969.4,1968.2,1.27019611]
[1772816106827,0.49591315,1969.1,1968.1,1.27022358]
[1772816107026,0.49591315,1969.0,1968.1,1.27022358]
[1772816107329,0.49591315,1969.0,1967.8,5.0818077]
[1772816107734,0.49591315,1968.8,1967.8,5.0818077]
[1772816108162,1.26987352,1968.7,1967.8,5.0818077]
[1772816108438,1.26981213,1968.8,1967.9,0.48261195]
[1772816108618,0.49591315,1968.7,1967.8,5.0818077]
[1772816108819,0.49591315,1968.7,1967.7,1.27045431]
[1772816108820,0.49591315,1968.7,1967.7,5.0818701]
[1772816109020,0.49591315,1968.7,1968.5,0.0011]
[1772816109215,0.49591315,1968.7,1967.7,5.0818701]
[1772816109423,0.49591315,1968.7,1968.4,0.0011]
[1772816109643,0.49591315,1968.7,1967.7,5.0818701]
[1772816109841,0.49591315,1968.7,1967.6,1.42701059]
[1772816110413,0.49591315,1968.5,1967.6,1.42701059]
[1772816111367,0.49591315,1968.3,1967.6,1.4270432]
[1772816111520,0.49591315,1968.3,1967.6,0.1564712]
[1772816111714,0.49591315,1968.3,1967.7,1.27051887]
[1772816111914,0.49591315,1968.3,1967.6,1.42700263]
[1772816112217,0.49591315,1968.3,1967.6,0.1564712]
[1772816112430,0.49591315,1968.1,1967.6,0.1564712]
[1772816113220,0.49591315,1967.8,1967.1,1.27087975]
[1772816113540,0.15647117,1968.0,1967.1,1.27087975]
[1772816113849,0.15647117,1968.0,1967.2,0.48261195]
[1772816114546,0.15647117,1968.0,1967.3,1.75338915]
[1772816114848,0.49591315,1968.7,1967.6,0.47687425]
[1772816115015,5.49591315,1969.0,1967.8,0.47687425]
[1772816115348,5.49591315,1969.0,1967.7,0.901]
[1772816115349,5.0,1969.0,1968.2,0.47687425]
[1772816115719,5.0,1969.0,1968.4,0.47687425]
[1772816116432,5.0,1969.0,1968.5,1.27000254]
[1772816117935,5.0,1969.0,1968.5,1.72249615]
[1772816118245,1.142,1969.6,1968.6,0.45249361]
[1772816118246,1.27034339,1969.6,1968.6,0.45249361]
[1772816118443,0.001,1969.6,1968.7,1.26987352]
[1772816119441,0.001,1969.6,1968.7,1.72236713]
[1772816119442,0.49691315,1969.6,1968.7,1.72236713]
[1772816120415,0.001,1969.6,1968.8,0.44645496]
[1772816120819,1.27034049,1969.6,1968.8,1.34845496]
[1772816121547,1.27034049,1969.6,1968.8,0.44645496]
[1772816121749,0.49591315,1969.5,1968.7,0.0011]
[1772816123250,0.49591315,1969.3,1968.7,0.0011]
[1772816123450,0.49591315,1969.2,1968.7,0.0011]
[1772816123751,1.26942215,1969.4,1968.7,0.0011]
[1772816125232,0.49591315,1969.5,1968.7,0.0011]
[1772816125431,1.76528298,1969.5,1968.7,0.0011]
[1772816125632,0.49591315,1969.5,1968.7,0.0011]
[1772816125845,0.001,1969.6,1968.7,0.44755496]
[1772816126032,0.56144915,1969.5,1968.5,0.0011]
[1772816126236,0.49591315,1968.3,1967.2,1.2708418]
[1772816127346,0.49591315,1968.3,1967.1,0.44645496]
[1772816127347,1.76608813,1968.3,1967.1,0.44645496]
[1772816127572,1.76608813,1968.3,1967.3,0.44645496]
[1772816127573,1.27017498,1968.3,1967.3,0.44645496]
[1772816128042,1.2700975,1968.4,1967.5,0.44645496]
[1772816129853,0.49591315,1968.4,1967.5,1.27063663]
[1772816130063,0.33640521,1969.0,1967.6,0.59593995]
[1772816130223,1.26948661,1969.3,1968.2,0.48261195]
[1772816130423,1.76537164,1969.4,1968.2,0.48261195]
[1772816131954,5.07868863,1969.6,1968.4,0.4709898]
[1772816131955,1.27029422,1969.6,1968.4,0.4709898]
[1772816132454,1.75552879,1969.6,1968.4,0.4709898]
[1772816132632,0.48523457,1969.5,1968.3,1.27013158]
[1772816133232,0.48523457,1969.5,1968.3,1.74112138]
[1772816133456,0.48523457,1969.5,1968.6,0.14948499]
[1772816133640,1.27029422,1969.6,1968.6,0.14948499]
[1772816133844,0.001,1969.5,1968.7,1.26987352]
[1772816134738,0.001,1969.5,1968.7,1.74086332]
[1772816135539,0.001,1969.5,1968.7,2.64286332]
[1772816136657,0.001,1969.5,1968.8,0.4709898]
[1772816137759,0.001,1969.5,1968.9,0.62047479]
[1772816138264,0.001,1969.5,1969.0,1.26968004]
[1772816138436,5.0,1970.0,1969.2,0.4709898]
[1772816138632,5.0,1970.0,1969.3,1.3729898]
[1772816138966,5.0,1970.0,1969.5,0.4709898]
[1772816138967,4.33859503,1970.0,1969.5,0.4709898]
[1772816139159,1e-08,1970.0,1969.5,0.4709898]
[1772816139762,1.26839167,1971.0,1969.9,0.4709898]
[1772816140061,1.26839167,1971.0,1970.0,0.903]
[1772816140361,1.26839167,1971.0,1970.1,1.26897111]
[1772816140866,0.48523457,1970.9,1969.7,1.26922881]
[1772816141044,0.48523457,1970.9,1969.7,2.16722881]
[1772816141862,5.07331946,1971.1,1969.7,2.16722881]
[1772816141863,1.26837091,1971.1,1969.8,0.14948499]
[1772816142066,1.75360548,1971.1,1969.8,0.14948499]
[1772816142439,1.75360548,1971.1,1969.9,1.26909995]
[1772816142647,1.75360548,1971.1,1970.0,0.14948499]
[1772816142944,1.75360548,1971.1,1970.0,0.62047479]
[1772816143144,1.75360548,1971.1,1970.1,2.95798201]
[1772816144664,1.26831538,1971.2,1970.2,1.88938149]
[1772816144965,1.75340355,1971.4,1970.4,0.4709898]
[1772816145166,1.75340355,1971.4,1970.3,0.9]
[1772816145167,0.48523457,1971.3,1970.3,0.9]
[1772816145949,0.001,1970.8,1970.3,0.9]
[1772816147170,0.48523457,1971.3,1970.4,1.73976771]
[1772816147469,0.48523457,1971.6,1970.5,0.4709898]
[1772816147670,1.75324335,1971.6,1970.7,0.4709898]
[1772816147971,1.75324774,1971.6,1970.7,0.4709898]
[1772816148268,1.75324774,1971.6,1970.6,0.14948499]
[1772816148269,0.48523457,1971.5,1970.4,1.73976771]
[1772816148463,0.48523457,1971.5,1970.5,0.901]
[1772816148863,0.82430628,1971.8,1970.7,0.4709898]
[1772816149173,0.82430628,1971.8,1971.0,0.14948499]
[1772816149348,1.75314632,1971.8,1970.9,1.26845603]
[1772816149872,0.48523457,1971.7,1970.9,1.26845603]
[1772816150069,0.48523457,1971.7,1970.8,1.26847021]
[1772816150269,0.48523457,1971.7,1970.7,1.26857001]
[1772816151251,0.48523457,1971.5,1970.7,1.26857001]
[1772816152078,1.26800568,1971.6,1970.7,1.26857001]
[1772816152286,1.26800568,1971.6,1970.7,1.73955981]
[1772816152872,1.75324025,1971.6,1970.8,0.902]
[1772816153083,5.07202272,1971.7,1970.8,0.902]
[1772816153084,1.26797915,1971.7,1970.8,0.902]
[1772816153255,1.26792952,1971.8,1970.9,1.73944583]
[1772816153456,1.75307258,1971.9,1970.9,1.73944583]
[1772816153982,0.48523457,1971.8,1970.9,1.26845603]
[1772816154188,0.48523457,1971.8,1970.8,0.902]
[1772816154664,0.48523457,1971.8,1970.7,5.97622328]
[1772816154864,0.48523457,1971.8,1970.8,0.62047479]
[1772816155062,0.48523457,1971.8,1970.9,0.4709898]
[1772816155384,1.74577026,1971.8,1971.1,1.26832732]
[1772816156276,0.47788749,1972.1,1971.2,1.36427685]
[1772816156532,0.47788749,1972.1,1971.1,1.26832732]
[1772816157173,1.26774847,1972.0,1971.1,1.26832732]
[1772816157355,1.26774847,1972.0,1971.1,1.72960417]
[1772816157559,0.47788749,1971.9,1971.1,1.26832732]
[1772816157794,0.47788749,1971.9,1971.2,0.903]
[1772816158184,0.47788749,1971.9,1971.1,1.26832732]
[1772816158511,0.47788749,1971.9,1971.1,2.17132732]
[1772816159284,1.74575296,1971.9,1971.1,2.17132732]
[1772816159483,1.74575296,1971.9,1971.1,1.26832732]
[1772816159705,1.74575296,1971.9,1971.2,0.904]
[1772816160418,0.47788749,1971.8,1970.9,1.26843251]
[1772816160585,0.47788749,1971.8,1970.8,1.26957119]
[1772816160789,0.47788749,1971.8,1970.8,2.17357119]
[1772816160983,0.47788749,1971.8,1970.8,0.9051]
[1772816161383,0.47788749,1971.6,1970.8,1.26961312]
[1772816161618,0.47788749,1971.6,1970.8,0.0011]
[1772816161775,0.47788749,1971.6,1970.8,1.26957675]
[1772816162382,1.76173703,1971.8,1970.8,1.7238591]